[Event "NJSK 2021 Jeugd C"]
[Site "Almelo, Netherlands"]
[Date "2021.08.02"]
[Round "2.7"]
[White "Blom, Rens"]
[Black "Kurt, Sascha"]
[Result "0-1"]
[TimeControl "90min + 30sec/move"]
[WhiteElo "1650"]
[BlackElo "1650"]

1. c4 {[%clk 01:30:59]} Nf6 {[%clk 01:30:55]} {[%emt 00:00:06]} 2. Nc3 {[%clk
01:31:25]} {[%emt 00:00:04]} g6 {[%clk 01:31:19]} {[%emt 00:00:06]} 3. d4
{[%clk 01:31:49]} {[%emt 00:00:07]} Bg7 {[%clk 01:31:40]} {[%emt 00:00:09]} 4.
e4 {[%clk 01:32:11]} {[%emt 00:00:07]} d6 {[%clk 01:32:01]} {[%emt 00:00:09]} 5.
Nf3 {[%clk 01:32:33]} {[%emt 00:00:08]} O-O {[%clk 01:32:24]} {[%emt 00:00:08]}
6. Be2 {[%clk 01:32:55]} {[%emt 00:00:08]} e5 {[%clk 01:32:45]} {[%emt
00:00:08]} 7. O-O {[%clk 01:33:18]} {[%emt 00:00:07]} Nc6 {[%clk 01:33:09]}
{[%emt 00:00:07]} 8. d5 {[%clk 01:33:39]} {[%emt 00:00:09]} Ne7 {[%clk
01:33:33]} {[%emt 00:00:06]} 9. Ne1 {[%clk 01:34:00]} {[%emt 00:00:09]} Ne8
{[%clk 01:33:57]} {[%emt 00:00:07]} 10. Be3 {[%clk 01:34:07]} {[%emt 00:00:22]}
f5 {[%clk 01:34:19]} {[%emt 00:00:08]} 11. f3 {[%clk 01:34:30]} {[%emt
00:00:07]} f4 {[%clk 01:34:44]} {[%emt 00:00:05]} 12. Bf2 {[%clk 01:34:55]}
{[%emt 00:00:04]} g5 {[%clk 01:35:06]} {[%emt 00:00:09]} 13. c5 {[%clk
01:33:40]} {[%emt 00:01:45]} Ng6 {[%clk 01:35:12]} {[%emt 00:00:24]} 14. cxd6
{[%clk 01:32:32]} {[%emt 00:01:37]} cxd6 {[%clk 01:35:32]} {[%emt 00:00:10]} 15.
a4 {[%clk 01:32:42]} {[%emt 00:00:21]} a5 {[%clk 01:33:17]} {[%emt 00:02:46]}
16. Qb3 {[%clk 01:27:58]} {[%emt 00:05:13]} Rf7 {[%clk 01:30:43]} {[%emt
00:03:03]} 17. Rc1 {[%clk 01:26:04]} {[%emt 00:02:24]} h5 {[%clk 01:30:05]}
{[%emt 00:01:08]} 18. Bb6 {[%clk 01:18:03]} {[%emt 00:08:32]} Qe7 {[%clk
01:29:20]} {[%emt 00:01:15]} 19. Nb5 {[%clk 01:11:00]} {[%emt 00:07:32]} g4
{[%clk 01:28:12]} {[%emt 00:01:38]} 20. Nc7 {[%clk 01:08:36]} {[%emt 00:02:55]}
Nxc7 {[%clk 01:27:21]} {[%emt 00:01:21]} 21. Rxc7 {[%clk 01:08:59]} {[%emt
00:00:07]} Qh4 {[%clk 01:24:46]} {[%emt 00:03:05]} 22. Qc3 {[%clk 01:06:58]}
{[%emt 00:02:31]} Rxc7 {[%clk 01:18:12]} {[%emt 00:07:04]} 23. Qxc7 {[%clk
01:06:48]} g3 {[%clk 01:18:10]} {[%emt 00:01:12]} 24. Qd8+ {[%clk 01:04:48]}
{[%emt 00:02:29]} Qxd8 {[%clk 01:18:23]} {[%emt 00:00:18]} 25. Bxd8 {[%clk
01:05:15]} {[%emt 00:00:03]} Bd7 {[%clk 01:16:35]} {[%emt 00:02:18]} 26. Bc7
{[%clk 01:04:10]} {[%emt 00:01:35]} Bf8 {[%clk 01:14:53]} {[%emt 00:02:12]} 27.
Bb5 {[%clk 01:00:39]} {[%emt 00:04:01]} Bxb5 {[%clk 01:14:25]} {[%emt
00:00:58]} 28. axb5 {[%clk 01:01:04]} {[%emt 00:00:05]} a4 {[%clk 01:13:28]}
{[%emt 00:01:26]} 29. h3 {[%clk 00:57:18]} {[%emt 00:04:16]} a3 {[%clk
01:12:29]} {[%emt 00:01:29]} 30. Nd3 {[%clk 00:52:47]} {[%emt 00:05:02]} axb2
{[%clk 01:11:11]} {[%emt 00:01:48]} 31. Nxb2 {[%clk 00:52:25]} {[%emt
00:00:52]} Ra3 {[%clk 01:09:47]} {[%emt 00:01:54]} 32. Rc1 {[%clk 00:49:14]}
{[%emt 00:03:41]} Rb3 {[%clk 01:09:31]} {[%emt 00:00:46]} 33. Nc4 {[%clk
00:46:23]} {[%emt 00:03:20]} Rxb5 {[%clk 01:07:21]} {[%emt 00:02:41]} 34. Nxd6
{[%clk 00:41:50]} {[%emt 00:05:02]} Rb2 {[%clk 01:07:18]} {[%emt 00:00:33]} 35.
Nc4 {[%clk 00:40:51]} {[%emt 00:01:30]} Re2 {[%clk 01:07:28]} {[%emt 00:00:19]}
36. Nxe5 {[%clk 00:33:58]} {[%emt 00:07:23]} Nh4 {[%clk 01:06:40]} {[%emt
00:01:19]} 37. Bb6 {[%clk 00:34:20]} {[%emt 00:00:08]} Rxg2+ {[%clk 01:06:20]}
{[%emt 00:00:49]} 38. Kf1 {[%clk 00:34:43]} {[%emt 00:00:06]} Rh2 {[%clk
01:05:33]} {[%emt 00:01:18]} 39. Bg1 {[%clk 00:28:50]} {[%emt 00:06:23]} Ra2
{[%clk 01:02:52]} {[%emt 00:03:11]} 40. Rb1 {[%clk 00:26:19]} {[%emt 00:03:02]}
Bd6 {[%clk 01:01:50]} {[%emt 00:01:32]} 41. Nc4 {[%clk 00:23:16]} {[%emt
00:03:33]} Nxf3 {[%clk 01:00:16]} {[%emt 00:02:03]} 42. Rb2 {[%clk 00:23:41]}
{[%emt 00:00:06]} Rxb2 {[%clk 01:00:28]} {[%emt 00:00:17]} 43. Nxb2 {[%clk
00:24:04]} {[%emt 00:00:07]} Nxg1 {[%clk 01:00:54]} {[%emt 00:00:05]} 44. Kxg1
{[%clk 00:24:18]} {[%emt 00:00:15]} f3 {[%clk 01:01:05]} {[%emt 00:00:19]} 45.
Nd3 {[%clk 00:23:33]} {[%emt 00:01:15]} Bc7 {[%clk 01:00:17]} {[%emt 00:01:19]}
46. Ne1 {[%clk 00:18:37]} {[%emt 00:05:25]} Bb6+ {[%clk 01:00:05]} {[%emt
00:00:43]} 47. Kf1 {[%clk 00:18:56]} {[%emt 00:00:10]} g2+ {[%clk 00:59:23]}
{[%emt 00:01:13]} 48. Nxg2 {[%clk 00:19:23]} {[%emt 00:00:03]} fxg2+ {[%clk
00:59:47]} {[%emt 00:00:05]} 49. Kxg2 {[%clk 00:19:50]} {[%emt 00:00:03]} Bc7
{[%clk 01:00:00]} {[%emt 00:00:18]} 50. Kf3 {[%clk 00:19:54]} {[%emt 00:00:26]}
Kf7 {[%clk 01:00:11]} {[%emt 00:00:19]} 51. Ke3 {[%clk 00:20:07]} {[%emt
00:00:17]} Kf6 {[%clk 01:00:23]} {[%emt 00:00:17]} 52. Kd4 {[%clk 00:19:23]}
{[%emt 00:01:14]} Bd6 {[%clk 00:59:47]} {[%emt 00:01:06]} 53. Kc4 {[%clk
00:16:36]} {[%emt 00:03:17]} Ke5 {[%clk 00:59:59]} {[%emt 00:00:18]} 54. Kd3
{[%clk 00:16:51]} {[%emt 00:00:15]} b5 {[%clk 01:00:08]} {[%emt 00:00:21]} 55.
Ke3 {[%clk 00:16:38]} {[%emt 00:00:43]} Bc5+ {[%clk 00:59:54]} {[%emt
00:00:44]} 56. Kd3 {[%clk 00:16:42]} {[%emt 00:00:26]} b4 {[%clk 00:59:45]}
{[%emt 00:00:39]} 57. Kc4 {[%clk 00:16:21]} {[%emt 00:00:52]} Bd6 {[%clk
00:59:56]} {[%emt 00:00:19]} 58. Kd3 {[%clk 00:16:17]} {[%emt 00:00:33]} b3
{[%clk 00:58:37]} {[%emt 00:01:49]} 59. Kc3 {[%clk 00:16:07]} {[%emt 00:00:41]}
Kxe4 {[%clk 00:58:59]} {[%emt 00:00:07]} 60. Kxb3 {[%clk 00:16:32]} {[%emt
00:00:05]} Kf3 {[%clk 00:59:19]} {[%emt 00:00:10]} 61. Kc4 {[%clk 00:14:09]}
{[%emt 00:02:53]} Kg3 {[%clk 00:59:35]} {[%emt 00:00:15]} 62. Kd4 {[%emt
00:01:06]} 0-1

[Event "NJSK 2021 Jeugd C"]
[Site "Almelo, Netherlands"]
[Date "2021.08.02"]
[Round "2.8"]
[White "Krylov, Philippe"]
[Black "Katpatal, Akshaj"]
[Result "0-1"]
[TimeControl "90min + 30sec/move"]
[WhiteElo "1339"]
[BlackElo "1650"]

1. d4 {[%clk 01:30:58]} {[%emt 00:00:02]} d5 {[%emt 00:00:15]} 2. c4 {[%clk
01:31:14]} c6 {[%clk 01:31:23]} {[%emt 00:00:05]} 3. Nf3 {[%clk 01:31:26]}
{[%emt 00:00:18]} Nf6 {[%clk 01:31:43]} {[%emt 00:00:11]} 4. Nc3 {[%clk
01:31:40]} {[%emt 00:00:15]} e6 {[%clk 01:32:00]} {[%emt 00:00:13]} 5. e3
{[%clk 01:31:44]} {[%emt 00:00:26]} Bb4 {[%clk 01:31:54]} {[%emt 00:00:35]} 6.
Qc2 {[%clk 01:31:21]} {[%emt 00:00:54]} O-O {[%clk 01:28:38]} {[%emt 00:03:45]}
7. Bd3 {[%clk 01:31:37]} {[%emt 00:00:15]} h6 {[%clk 01:28:52]} {[%emt
00:00:16]} 8. O-O {[%clk 01:31:25]} {[%emt 00:00:42]} Nbd7 {[%clk 01:28:45]}
{[%emt 00:00:35]} 9. Bd2 {[%clk 01:30:13]} {[%emt 00:01:43]} Ba5 {[%clk
01:28:14]} {[%emt 00:01:01]} 10. h3 {[%clk 01:28:21]} {[%emt 00:02:23]} Bc7
{[%clk 01:28:27]} {[%emt 00:00:15]} 11. e4 {[%clk 01:28:24]} {[%emt 00:00:29]}
dxe4 {[%clk 01:28:37]} {[%emt 00:00:18]} 12. Nxe4 {[%clk 01:28:33]} {[%emt
00:00:22]} Nxe4 {[%clk 01:28:49]} {[%emt 00:00:18]} 13. Bxe4 {[%clk 01:28:51]}
{[%emt 00:00:12]} f5 {[%clk 01:28:04]} {[%emt 00:01:16]} 14. Bd3 {[%clk
01:28:58]} {[%emt 00:00:23]} Nf6 {[%clk 01:28:16]} {[%emt 00:00:17]} 15. Rad1
{[%clk 01:27:37]} {[%emt 00:01:52]} Bd7 {[%clk 01:28:33]} {[%emt 00:00:12]} 16.
Rfe1 {[%clk 01:27:16]} {[%emt 00:00:52]} Qc8 {[%clk 01:21:25]} {[%emt
00:07:38]} 17. Ne5 {[%clk 01:23:41]} {[%emt 00:04:04]} Bxe5 {[%clk 01:20:03]}
{[%emt 00:01:52]} 18. dxe5 {[%clk 01:23:58]} {[%emt 00:00:14]} Nh5 {[%clk
01:20:08]} {[%emt 00:00:25]} 19. Be2 {[%clk 01:24:04]} {[%emt 00:00:24]} Be8
{[%clk 01:20:10]} {[%emt 00:00:29]} 20. Bf3 {[%clk 01:23:12]} {[%emt 00:01:22]}
a5 {[%clk 01:18:01]} {[%emt 00:02:39]} 21. a3 {[%clk 01:22:53]} {[%emt
00:00:48]} f4 {[%clk 01:13:05]} {[%emt 00:05:26]} 22. Bc3 {[%clk 01:19:24]}
{[%emt 00:03:59]} Qc7 {[%clk 01:12:23]} {[%emt 00:01:11]} 23. Bg4 {[%clk
01:19:13]} {[%emt 00:00:42]} f3 {[%clk 01:07:07]} {[%emt 00:05:46]} 24. Bxf3
{[%clk 01:15:15]} {[%emt 00:04:27]} Nf4 {[%clk 01:05:53]} {[%emt 00:01:44]} 25.
Bd2 {[%clk 01:11:57]} {[%emt 00:03:48]} Nxh3+ {[%clk 00:00:00]} {[%emt
00:03:30]} 26. gxh3 {[%clk 01:10:58]} {[%emt 00:00:38]} Rxf3 {[%clk 01:08:43]}
{[%emt 00:00:02]} 27. Qe4 {[%clk 01:09:32]} {[%emt 00:01:56]} Qf7 {[%clk
01:06:28]} {[%emt 00:02:45]} 28. Qh4 {[%clk 01:01:47]} {[%emt 00:08:15]} Qg6+
{[%clk 01:06:00]} {[%emt 00:00:56]} 29. Kh2 {[%clk 00:59:40]} {[%emt 00:02:38]}
Qf5 {[%clk 01:05:33]} {[%emt 00:00:58]} 30. Re2 {[%clk 00:57:06]} {[%emt
00:03:02]} Bg6 {[%clk 01:02:51]} {[%emt 00:03:14]} 31. Rg1 {[%clk 00:55:56]}
{[%emt 00:01:38]} Rf8 {[%clk 01:02:35]} {[%emt 00:00:48]} 32. Qg4 {[%clk
00:51:26]} {[%emt 00:05:00]} Qxg4 {[%clk 01:01:59]} {[%emt 00:01:06]} 33. Rxg4
{[%clk 00:51:23]} {[%emt 00:00:32]} Rxf2+ {[%clk 01:02:14]} {[%emt 00:00:15]}
34. Rxf2 {[%clk 00:51:32]} {[%emt 00:00:21]} Rxf2+ {[%clk 01:02:31]} {[%emt
00:00:14]} 35. Rg2 {[%clk 00:51:59]} {[%emt 00:00:03]} Rxg2+ {[%clk 01:02:06]}
{[%emt 00:00:54]} 36. Kxg2 {[%clk 00:52:25]} {[%emt 00:00:05]} a4 {[%clk
01:02:14]} {[%emt 00:00:23]} 37. c5 {[%clk 00:52:24]} {[%emt 00:00:30]} Bc2
{[%clk 01:02:29]} {[%emt 00:00:15]} 38. h4 {[%clk 00:52:28]} {[%emt 00:00:26]}
Kf7 {[%clk 01:02:54]} {[%emt 00:00:05]} 39. Kg3 {[%clk 00:52:41]} {[%emt
00:00:16]} Kg6 {[%clk 01:03:13]} {[%emt 00:00:11]} 40. Kg4 {[%clk 00:51:23]}
{[%emt 00:01:48]} Bd1+ {[%clk 01:03:25]} {[%emt 00:00:18]} 41. Kf4 {[%clk
00:51:01]} {[%emt 00:00:51]} Kh5 {[%clk 01:03:18]} {[%emt 00:00:37]} 42. Kg3
{[%clk 00:49:26]} {[%emt 00:02:06]} g5 {[%clk 01:03:41]} {[%emt 00:00:07]} 43.
hxg5 {[%clk 00:49:38]} {[%emt 00:00:17]} hxg5 {[%clk 01:04:04]} {[%emt
00:00:07]} 44. Ba5 {[%clk 00:49:53]} {[%emt 00:00:16]} Kg6 {[%clk 01:04:27]}
{[%emt 00:00:07]} 45. Bc7 {[%clk 00:50:13]} {[%emt 00:00:10]} Kf5 {[%clk
01:04:50]} {[%emt 00:00:07]} 46. Bd6 {[%clk 00:50:37]} {[%emt 00:00:06]} Ke4
{[%clk 01:05:14]} {[%emt 00:00:06]} 47. Bc7 {[%clk 00:50:26]} {[%emt 00:00:40]}
Kd5 {[%clk 01:05:22]} {[%emt 00:00:23]} 48. Bd6 {[%clk 00:50:01]} {[%emt
00:00:55]} g4 {[%clk 01:05:47]} {[%emt 00:00:06]} 49. Kf2 {[%clk 00:49:50]}
{[%emt 00:00:39]} Kc4 {[%clk 01:05:58]} {[%emt 00:00:20]} 50. Ke1 {[%clk
00:49:14]} {[%emt 00:01:06]} Bf3 {[%clk 01:06:13]} {[%emt 00:00:15]} 51. Kd2
{[%clk 00:47:35]} {[%emt 00:02:08]} g3 {[%clk 01:06:01]} {[%emt 00:00:43]} 52.
Ke1 {[%clk 00:47:42]} {[%emt 00:00:23]} Kb3 {[%clk 01:06:20]} {[%emt 00:00:11]}
53. Be7 {[%clk 00:46:57]} {[%emt 00:01:15]} Kxb2 {[%clk 01:06:41]} {[%emt
00:00:08]} 54. Bh4 {[%clk 00:47:13]} {[%emt 00:00:14]} g2 {[%clk 01:07:02]}
{[%emt 00:00:10]} 55. Bf2 {[%clk 00:47:35]} {[%emt 00:00:08]} Kxa3 {[%clk
01:07:25]} {[%emt 00:00:07]} 56. Kd2 {[%clk 00:47:57]} {[%emt 00:00:07]} Kb2
{[%clk 01:07:09]} {[%emt 00:00:47]} 57. Bd4+ {[%clk 00:48:07]} {[%emt
00:00:20]} Kb1 {[%clk 01:07:33]} {[%emt 00:00:06]} 58. Kc3 {[%clk 00:47:53]}
{[%emt 00:00:44]} a3 {[%emt 00:00:39]} 0-1

[Event "NJSK 2021 Jeugd C"]
[Site "Almelo, Netherlands"]
[Date "2021.08.02"]
[Round "2.9"]
[White "Kien, Lancelot"]
[Black "Ramdien, Steven"]
[Result "1/2-1/2"]
[TimeControl "90min + 30sec/move"]
[WhiteElo "1650"]
[BlackElo "1589"]

1. e4 {[%clk 01:30:57]} {[%emt 00:00:03]} c5 {[%clk 01:30:56]} {[%emt
00:00:05]} 2. Nf3 {[%clk 01:31:22]} {[%emt 00:00:04]} d6 {[%clk 01:31:20]}
{[%emt 00:00:05]} 3. d4 {[%clk 01:31:48]} {[%emt 00:00:05]} cxd4 {[%clk
01:31:46]} {[%emt 00:00:04]} 4. Nxd4 {[%clk 01:32:13]} {[%emt 00:00:05]} Nf6
{[%clk 01:32:09]} {[%emt 00:00:06]} 5. Nc3 {[%clk 01:32:40]} {[%emt 00:00:03]}
a6 {[%clk 01:32:31]} {[%emt 00:00:08]} 6. Be3 {[%clk 01:32:45]} {[%emt
00:00:25]} b5 {[%clk 01:32:19]} {[%emt 00:00:42]} 7. f3 {[%clk 01:32:49]}
{[%emt 00:00:26]} Bb7 {[%clk 01:32:05]} {[%emt 00:00:44]} 8. Qd2 {[%clk
01:32:58]} {[%emt 00:00:21]} Nc6 {[%clk 01:31:40]} {[%emt 00:00:55]} 9. O-O-O
{[%clk 01:32:35]} {[%emt 00:00:53]} g6 {[%clk 01:30:31]} {[%emt 00:01:40]} 10.
Be2 {[%clk 01:31:31]} {[%emt 00:01:34]} Rc8 {[%clk 01:28:23]} {[%emt 00:02:38]}
11. Nb3 {[%clk 01:29:43]} {[%emt 00:02:19]} Bg7 {[%clk 01:24:29]} {[%emt
00:04:24]} 12. Kb1 {[%clk 01:28:15]} {[%emt 00:01:57]} Ne5 {[%clk 01:14:12]}
{[%emt 00:10:46]} 13. Bh6 {[%clk 01:24:06]} {[%emt 00:04:40]} O-O {[%clk
01:13:23]} {[%emt 00:01:19]} 14. h4 {[%clk 01:23:44]} {[%emt 00:00:52]} b4
{[%clk 01:11:06]} {[%emt 00:02:47]} 15. Nd5 {[%clk 01:20:00]} {[%emt 00:04:14]}
Bxd5 {[%clk 01:09:51]} {[%emt 00:01:45]} 16. exd5 {[%clk 01:19:32]} {[%emt
00:00:57]} a5 {[%clk 01:04:37]} {[%emt 00:05:45]} 17. g4 {[%clk 01:14:12]}
{[%emt 00:05:50]} Qc7 {[%clk 00:53:43]} {[%emt 00:11:24]} 18. h5 {[%clk
01:09:29]} {[%emt 00:05:13]} Bxh6 {[%clk 00:46:32]} {[%emt 00:07:41]} 19. Qxh6
{[%clk 01:08:11]} {[%emt 00:01:48]} Qxc2+ {[%clk 00:26:03]} {[%emt 00:20:59]}
20. Ka1 {[%clk 01:08:27]} {[%emt 00:00:14]} Qxe2 {[%clk 00:18:35]} {[%emt
00:07:58]} 21. hxg6 {[%clk 01:06:55]} {[%emt 00:02:02]} fxg6 {[%clk 00:18:26]}
{[%emt 00:00:39]} 22. g5 {[%clk 01:04:16]} {[%emt 00:03:09]} Qe3 {[%clk
00:07:21]} {[%emt 00:11:31]} 23. Rde1 {[%clk 01:03:01]} {[%emt 00:01:49]} Nf7
{[%clk 00:05:55]} {[%emt 00:01:55]} 24. Rxe3 {[%clk 01:02:36]} {[%emt
00:00:56]} Nxh6 {[%clk 00:06:20]} {[%emt 00:00:05]} 25. gxh6 {[%clk 00:57:04]}
{[%emt 00:06:01]} Nxd5 {[%clk 00:05:58]} {[%emt 00:00:53]} 26. Rd3 {[%clk
00:55:29]} {[%emt 00:02:05]} e6 {[%clk 00:05:27]} {[%emt 00:01:01]} 27. Nxa5
{[%clk 00:54:37]} {[%emt 00:01:22]} Rf5 {[%clk 00:05:05]} {[%emt 00:00:52]} 28.
b3 {[%clk 00:52:12]} {[%emt 00:02:55]} Nf4 {[%clk 00:05:13]} {[%emt 00:00:22]}
29. Rxd6 {[%clk 00:51:48]} {[%emt 00:00:54]} Rxa5 {[%clk 00:05:25]} {[%emt
00:00:18]} 30. Rd7 {[%clk 00:51:12]} {[%emt 00:01:05]} Rca8 {[%clk 00:05:32]}
{[%emt 00:00:24]} 31. Rh2 {[%clk 00:51:27]} {[%emt 00:00:15]} Rd5 {[%clk
00:05:23]} {[%emt 00:00:38]} 32. Rg7+ {[%clk 00:50:52]} {[%emt 00:01:05]} Kh8
{[%clk 00:05:41]} {[%emt 00:00:13]} 33. Rh4 {[%clk 00:50:38]} {[%emt 00:00:44]}
Rad8 {[%clk 00:05:00]} {[%emt 00:01:11]} 34. Rc7 {[%clk 00:49:47]} {[%emt
00:01:21]} g5 {[%clk 00:04:46]} {[%emt 00:00:43]} 35. Rh1 {[%clk 00:49:30]}
{[%emt 00:00:47]} Rd1+ {[%clk 00:05:09]} {[%emt 00:00:08]} 36. Rxd1 {[%clk
00:48:55]} {[%emt 00:01:05]} Rxd1+ {[%clk 00:05:38]} 37. Kb2 {[%clk 00:49:15]}
{[%emt 00:00:11]} Rd8 {[%clk 00:05:31]} {[%emt 00:00:37]} 38. Rb7 {[%clk
00:49:02]} {[%emt 00:00:43]} Re8 {[%clk 00:05:35]} {[%emt 00:00:25]} 39. Kc2
{[%clk 00:49:08]} {[%emt 00:00:25]} Rc8+ {[%clk 00:05:26]} {[%emt 00:00:38]} 40.
Kd2 {[%clk 00:48:50]} {[%emt 00:00:48]} Nd5 {[%clk 00:05:13]} {[%emt 00:00:44]}
41. Kd3 {[%clk 00:48:16]} {[%emt 00:01:04]} Nf4+ {[%clk 00:04:26]} {[%emt
00:01:16]} 42. Ke4 {[%clk 00:48:28]} {[%emt 00:00:18]} Nh5 {[%clk 00:03:43]}
{[%emt 00:01:13]} 43. Ke5 {[%clk 00:48:13]} {[%emt 00:00:46]} Re8 {[%clk
00:03:44]} {[%emt 00:00:29]} 44. Rxb4 {[%clk 00:48:08]} {[%emt 00:00:35]} Kg8
{[%clk 00:03:51]} {[%emt 00:00:22]} 45. Rb7 {[%clk 00:48:09]} {[%emt 00:00:29]}
Ra8 {[%clk 00:03:49]} {[%emt 00:00:33]} 46. a4 {[%clk 00:46:36]} {[%emt
00:02:03]} Ra5+ {[%clk 00:03:56]} {[%emt 00:00:22]} 47. Kxe6 {[%clk 00:45:42]}
{[%emt 00:01:24]} Nf4+ {[%clk 00:04:04]} {[%emt 00:00:22]} 48. Kf6 {[%clk
00:45:29]} {[%emt 00:00:43]} Nh5+ {[%clk 00:04:31]} {[%emt 00:00:02]} 49. Ke6
{[%clk 00:42:08]} {[%emt 00:03:52]} Nf4+ {[%clk 00:04:48]} {[%emt 00:00:13]}
1/2-1/2